bitfinex-derivatives/quotes_ETHF0:USTF0_20250308
["timestamp","ask_amount","ask_price","bid_price","bid_amount"]
[1741408320099,0.93129,2148.2,2148.0,3.2078]
[1741408320304,0.93129,2148.2,2148.0,4.32915]
[1741408320507,0.93129,2148.2,2148.0,3.3978]
[1741408320801,0.93129,2148.2,2148.0,3.2078]
[1741408321996,0.93129,2148.2,2147.9,0.93833983]
[1741408322297,0.93822983,2148.3,2148.1,3.2078]
[1741408322694,0.00697983,2148.3,2148.1,3.2078]
[1741408323002,0.00697983,2148.3,2148.1,3.2378]
[1741408323204,0.00697983,2148.3,2148.2,0.93127]
[1741408323803,0.00697983,2148.3,2148.1,4.13908]
[1741408324002,0.00697983,2148.3,2148.1,4.22908]
[1741408324302,0.00697983,2148.3,2148.2,0.93127]
[1741408324490,0.00697983,2148.3,2148.2,0.94127]
[1741408324799,0.00697983,2148.3,2148.2,1.57757]
[1741408325007,0.00697983,2148.3,2148.2,2.20737]
[1741408325408,0.93819983,2148.3,2148.2,1.2761]
[1741408325698,0.00697983,2148.3,2148.2,0.94127]
[1741408326496,0.00697983,2148.3,2148.2,0.01]
[1741408326799,0.00697983,2148.3,2148.1,4.13907]
[1741408326800,0.93127,2148.2,2148.1,3.2078]
[1741408327803,1.55517,2148.2,2148.1,3.2078]
[1741408328103,2.82397,2148.2,2148.1,3.2078]
[1741408328708,1.8927,2148.2,2148.1,3.2078]
[1741408328904,2.82397,2148.2,2148.1,3.2078]
[1741408330003,0.93135,2148.0,2147.9,0.00697983]
[1741408332107,4.93135,2148.0,2147.9,0.00697983]
[1741408332310,0.93144,2147.8,2147.7,3.2078]
[1741408332507,3.05244,2147.8,2147.7,3.2078]
[1741408332703,3.05244,2147.8,2147.2,0.6188]
[1741408332704,0.93164,2147.4,2147.2,3.2078]
[1741408333012,4.8907,2147.7,2147.2,3.2578]
[1741408333203,0.93154,2147.6,2147.4,0.93161]
[1741408333400,4.8907,2147.7,2147.2,3.21477983]
[1741408333606,0.93166,2147.3,2147.2,3.21477983]
[1741408333808,7.21949,2147.7,2147.2,4.14647983]
[1741408333809,3.06064,2147.4,2147.2,4.14647983]
[1741408334005,2.129,2147.4,2147.2,3.21477983]
[1741408334211,0.93166,2147.3,2147.2,3.21477983]
[1741408334404,2.129,2147.4,2147.2,3.21477983]
[1741408334603,2.129,2147.4,2147.2,4.14646983]
[1741408334805,3.06063,2147.4,2147.2,4.14646983]
[1741408335005,0.93166,2147.3,2147.2,3.21477983]
[1741408335202,3.06063,2147.4,2147.2,3.21477983]
[1741408335409,0.93166,2147.3,2147.2,3.21477983]
[1741408335907,4.8907,2147.7,2147.2,3.21477983]
[1741408336110,3.05655,2147.6,2147.3,0.93162]
[1741408336409,3.05655,2147.6,2147.3,0.03]
[1741408336410,2.125,2147.6,2147.3,0.03]
[1741408336609,2.125,2147.6,2147.4,0.93161]
[1741408336813,2.125,2147.6,2147.5,0.93157]
[1741408337011,3.05654,2147.6,2147.4,0.93159]
[1741408337215,2.125,2147.6,2147.4,0.07]
[1741408337509,3.05653,2147.6,2147.4,1.00159]
[1741408337713,0.93163,2147.4,2147.2,4.14647983]
[1741408338005,2.125,2147.6,2147.3,0.93163]
[1741408338006,0.93159,2147.5,2147.3,0.93163]
[1741408338212,0.93159,2147.5,2147.3,0.97163]
[1741408338408,2.125,2147.6,2147.4,0.93158]
[1741408338603,2.125,2147.6,2147.4,0.93161]
[1741408338803,3.05654,2147.6,2147.4,0.93161]
[1741408339011,0.93159,2147.5,2147.3,1.59465]
[1741408339210,0.93159,2147.5,2147.3,1.63465]
[1741408339812,2.125,2147.6,2147.3,0.703]
[1741408340012,0.93157,2147.5,2147.3,1.63463]
[1741408340408,0.93159,2147.5,2147.3,1.63466]
[1741408341616,3.05656,2147.6,2147.4,0.93161]
[1741408341915,0.93157,2147.5,2147.3,1.59463]
[1741408342114,0.93157,2147.5,2147.3,1.64463]
[1741408342516,0.93157,2147.5,2147.3,0.713]
[1741408342814,3.05055,2147.6,2147.4,0.9316]
[1741408344112,2.118,2147.8,2147.4,0.7274]
[1741408344305,3.04947,2147.8,2147.6,0.93149]
[1741408344509,2.118,2147.8,2147.6,0.03]
[1741408344710,0.93148,2147.7,2147.6,0.03]
[1741408345316,3.04946,2147.8,2147.6,0.03]
[1741408345618,3.04946,2147.8,2147.6,0.96149]
[1741408346017,0.93148,2147.7,2147.6,0.03]
[1741408347518,2.118,2147.8,2147.5,4.13935]
[1741408347519,0.93153,2147.6,2147.5,3.2078]
[1741408347715,0.6495,2147.6,2147.2,3.21477983]
[1741408347918,0.6495,2147.6,2147.2,4.24643983]
[1741408347919,0.93164,2147.4,2147.2,4.24643983]
[1741408348118,0.93162,2147.4,2147.2,4.24645983]
[1741408348509,0.6537,2147.5,2147.2,3.31477983]
[1741408349011,1.53601,2147.7,2147.5,0.93157]
[1741408350219,0.6045,2147.7,2147.2,3.21477983]
[1741408350418,0.6045,2147.7,2147.4,0.93161]
[1741408350419,0.93156,2147.6,2147.4,0.93161]
[1741408350818,1.53601,2147.7,2147.5,0.93157]
[1741408351114,1.2876,2147.9,2147.5,3.2478]
[1741408351319,3.04536,2148.0,2147.8,0.93141]
[1741408351914,0.93141,2147.9,2147.7,1.57787]
[1741408352226,0.93141,2147.9,2147.7,1.64787]
[1741408353720,0.93163,2147.4,2147.2,4.14645983]
[1741408353920,0.9316,2147.5,2147.2,3.46477983]
[1741408354120,2.112,2147.6,2147.2,3.46477983]
[1741408354320,2.112,2147.6,2147.4,0.93161]
[1741408354515,2.112,2147.6,2147.4,0.06]
[1741408354722,2.112,2147.6,2147.5,0.93157]
[1741408355223,2.112,2147.6,2147.5,1.10157]
[1741408355424,3.04353,2147.6,2147.5,0.17]
[1741408355814,2.112,2147.6,2147.2,3.21477983]
[1741408356019,0.664,2147.5,2146.9,3.2078]
[1741408356221,0.93179,2147.0,2146.9,3.2278]
[1741408356425,2.111,2147.2,2146.9,4.15961]
[1741408356826,3.04272,2147.2,2146.9,4.15961]
[1741408357121,2.111,2147.2,2147.0,0.93176]
[1741408357420,2.111,2147.2,2147.0,0.94176]
[1741408357726,3.04272,2147.2,2147.0,0.94178]
[1741408357924,2.111,2147.2,2147.0,0.94178]
[1741408358120,2.111,2147.2,2147.0,0.01]
[1741408358325,3.87997983,2147.3,2146.9,3.2078]
[1741408358525,0.93183,2146.9,2146.8,0.00697983]
[1741408359218,0.6397,2146.9,2146.8,0.00697983]
[1741408359414,2.114,2147.0,2146.8,0.00697983]
[1741408359626,0.93183,2146.9,2146.8,0.00697983]
[1741408359823,2.114,2147.0,2146.8,0.00697983]
[1741408360024,3.69068,2147.1,2146.8,0.93882983]
[1741408360219,2.119,2147.1,2146.9,0.93181]
[1741408360525,2.119,2147.1,2146.9,1.62351]
[1741408360727,3.05075,2147.1,2146.9,2.24731]
[1741408361027,1.57142,2147.2,2146.9,2.24731]
[1741408361218,0.6397,2147.2,2147.0,0.93177]
[1741408361818,1.57142,2147.2,2146.9,2.1773]
[1741408362016,0.6397,2147.2,2146.9,1.3055]
[1741408362217,3.2078,2148.2,2147.1,3.2078]
[1741408362422,0.93146,2147.8,2147.5,0.93153]
[1741408362632,0.93146,2147.8,2147.5,2.20843]
[1741408363425,0.93153,2147.6,2147.5,1.2769]
[1741408363621,0.93153,2147.6,2147.4,4.1394]
[1741408363818,0.93153,2147.6,2147.4,4.2394]
[1741408364124,4.28521983,2147.9,2147.6,0.93151]
[1741408364426,2.73117983,2147.9,2147.8,0.93144]
[1741408365326,0.00697983,2147.9,2147.8,0.95144]
[1741408365630,3.65335,2148.3,2148.0,0.93133]
[1741408365826,1.53635,2148.3,2148.1,0.93131]
[1741408366127,4.27911,2148.4,2148.1,0.93129]
[1741408366324,4.27911,2148.4,2148.0,3.2078]
[1741408366325,1.2309,2148.4,2148.0,3.2078]
[1741408366520,1.23787983,2148.4,2148.1,0.93129]
[1741408366725,0.93124,2148.3,2148.0,4.14609983]
[1741408366926,0.93124,2148.3,2148.0,4.22609983]
[1741408367126,0.93124,2148.3,2148.1,0.93129]
[1741408368222,1.23787983,2148.4,2148.2,0.93126]
[1741408368423,0.00697983,2148.4,2148.3,0.93122]
[1741408368624,0.00697983,2148.4,2148.3,4.13902]
[1741408368831,0.6436,2148.7,2148.6,0.93109]
[1741408369129,0.6132,2149.0,2148.6,7.2178]
[1741408369334,0.9309,2149.1,2148.8,0.93099]
[1741408369634,0.93095,2149.0,2148.7,0.93103]
[1741408369833,2.7292,2149.2,2148.7,0.93105]
[1741408370035,2.7292,2149.2,2149.0,0.9309]
[1741408370229,0.93088,2149.1,2148.9,3.2078]
[1741408370528,3.66005,2149.2,2148.9,4.13875]
[1741408371032,2.7292,2149.2,2148.9,4.13875]
[1741408371433,0.6132,2149.2,2149.0,0.9309]
[1741408372233,0.6132,2149.2,2149.1,0.93088]
[1741408372734,0.6132,2149.2,2148.9,3.2078]
[1741408372927,0.6132,2149.2,2148.9,4.15874]
[1741408373128,0.93092,2149.0,2148.9,3.2078]
[1741408373328,0.6132,2149.2,2148.5,4.13892]
[1741408373329,0.931,2148.9,2148.5,4.13892]
[1741408373634,0.93109,2148.6,2148.5,3.2078]
[1741408373936,3.04709,2148.6,2148.5,3.2078]
[1741408375229,2.7276,2148.9,2148.5,4.1389]
[1741408375432,3.65858,2148.9,2148.6,0.93108]
[1741408375627,2.115,2148.9,2148.7,0.93105]
[1741408376029,2.115,2148.9,2148.6,1.57747]
[1741408376231,2.115,2148.9,2148.7,0.93105]
[1741408376432,4.27555,2149.2,2148.7,0.02]
[1741408376628,3.3447,2149.2,2148.8,0.93097]
[1741408376936,0.93101,2148.8,2148.6,0.6464]
[1741408377131,0.93101,2148.8,2148.6,0.7364]
[1741408377837,0.93103,2148.8,2148.6,0.7364]
[1741408378130,3.3447,2149.2,2148.6,0.7364]
[1741408378325,0.931,2148.9,2148.6,1.66749]
[1741408379535,0.93102,2148.8,2148.6,0.7364]
[1741408379835,0.93109,2148.6,2148.5,3.2078]
[1741408380034,0.6212,2148.7,2148.5,3.2378]
[1741408380338,2.983,2149.1,2148.5,3.2378]
[1741408380935,0.931,2148.9,2148.6,0.93108]
[1741408381130,2.983,2149.1,2148.6,0.93108]
[1741408381131,2.983,2149.1,2148.6,1.04109]
[1741408381432,2.983,2149.1,2148.5,3.2078]
[1741408381433,5.3278,2149.0,2148.5,3.2078]
[1741408381637,0.93108,2148.7,2148.5,3.2278]
[1741408381837,5.3278,2149.0,2148.5,3.2278]
[1741408381838,0.93109,2148.6,2148.5,3.2278]
[1741408382034,5.3278,2149.0,2148.5,3.2278]
[1741408382234,5.3278,2149.0,2148.5,4.15894]
[1741408382432,0.93101,2148.8,2148.5,3.2278]
[1741408382630,2.12,2149.0,2148.5,3.2278]
[1741408382833,0.93109,2148.6,2148.5,3.2078]
[1741408383231,1.60017,2148.7,2148.5,3.2678]
[1741408383436,0.6691,2148.7,2148.5,3.2678]
[1741408383637,0.93102,2148.8,2148.5,3.2678]
[1741408384138,0.93102,2148.8,2148.6,0.93108]
[1741408384338,0.93102,2148.8,2148.6,0.94108]
[1741408385333,0.93098,2148.9,2148.7,0.93103]
[1741408385836,2.7891,2149.0,2148.6,0.6345]
[1741408386037,0.93109,2148.6,2148.5,3.2078]
[1741408388936,5.3258,2148.6,2148.0,3.21477983]
[1741408389137,0.6323,2148.5,2148.0,3.35477983]
[1741408389339,0.93118,2148.4,2148.2,0.93125]
[1741408390337,0.6323,2148.5,2148.2,0.07]
[1741408390542,0.93131,2148.1,2148.0,3.21477983]
[1741408390744,2.118,2148.2,2148.0,0.00697983]
[1741408390937,2.118,2148.2,2148.1,0.93131]
[1741408391243,0.93124,2148.3,2148.0,0.93830983]
[1741408391541,0.93124,2148.3,2148.0,0.99830983]
[1741408391743,0.6601,2148.4,2148.0,3.27477983]
[1741408392043,0.6543,2148.7,2148.1,1.2743]
[1741408392243,0.93118,2148.4,2148.2,0.93125]
[1741408392439,2.7753,2148.7,2148.2,1.00126]
[1741408392635,0.93117,2148.5,2148.3,0.93119]
[1741408393038,2.7753,2148.7,2148.1,1.2743]
[1741408393238,4.2724,2148.9,2148.5,0.93112]
[1741408393438,0.93104,2148.8,2148.3,3.2078]
[1741408393638,6.3924,2148.9,2148.3,3.3778]
[1741408393838,0.93103,2148.8,2148.3,3.3778]
[1741408394042,3.2078,2149.0,2148.6,3.2078]
[1741408394236,0.93097,2148.9,2148.7,0.93103]
[1741408394550,0.93097,2148.9,2148.7,0.98105]
[1741408394972,0.652,2149.2,2148.8,0.931]
[1741408395140,0.93092,2149.0,2148.8,0.931]
[1741408395539,0.93097,2148.9,2148.7,1.55793]
[1741408395738,0.93097,2148.9,2148.7,1.59793]
[1741408395947,0.6435,2149.5,2148.7,4.6669]
[1741408396253,0.93075,2149.4,2149.1,0.93085]
[1741408396554,2.7625,2149.5,2149.1,0.93085]
[1741408396936,0.6435,2149.5,2149.0,4.14567983]
[1741408397247,0.93087,2149.2,2149.0,3.30477983]
[1741408397637,0.6435,2149.5,2149.0,3.30477983]
[1741408397838,0.93088,2149.1,2149.0,3.21477983]
[1741408398342,0.93085,2149.2,2149.0,3.21477983]
[1741408398650,0.6564,2149.4,2149.0,3.21477983]
[1741408398849,0.93088,2149.1,2149.0,3.21477983]
[1741408399249,0.93085,2149.2,2149.0,3.21477983]
[1741408399452,0.93088,2149.1,2149.0,3.21477983]
[1741408400648,0.6564,2149.4,2149.1,0.93085]
[1741408400649,1.58717,2149.4,2149.1,0.93085]
[1741408400945,0.93082,2149.3,2149.1,0.93087]
[1741408401141,0.93083,2149.2,2149.1,0.6037]
[1741408401339,0.93082,2149.3,2149.1,1.53458]
[1741408401645,0.93083,2149.2,2149.1,0.6037]
[1741408402048,0.93082,2149.3,2149.1,0.6037]
[1741408402249,2.7595,2149.5,2149.1,0.6037]
[1741408402448,0.93088,2149.1,2149.0,3.21477983]
[1741408406051,4.13868,2149.1,2149.0,0.00697983]
[1741408406255,6.26668,2149.1,2149.0,0.00697983]
[1741408406963,6.26668,2149.1,2148.4,3.2078]
[1741408406964,0.93114,2148.5,2148.4,3.2078]
[1741408407662,1.58974,2148.5,2148.4,3.2078]
[1741408411256,2.126,2148.6,2148.4,3.2378]
[1741408411571,2.126,2148.6,2148.5,0.93114]
[1741408411958,0.93803983,2148.7,2148.4,3.8501]
[1741408412263,0.00697983,2148.7,2148.6,0.93109]
[1741408412463,0.00697983,2148.7,2148.4,3.8501]
[1741408412765,0.00697983,2148.7,2148.6,0.93109]
[1741408413567,0.93094,2149.0,2148.8,0.93097]
[1741408413755,0.93096,2148.9,2148.8,0.05]
[1741408413958,0.93096,2148.9,2148.7,4.74895]
[1741408414764,0.93101,2148.8,2148.7,3.2078]
[1741408416364,0.93114,2148.5,2148.4,3.8501]
[1741408416862,0.93114,2148.5,2148.4,3.2078]
[1741408418070,0.93122,2148.3,2148.2,0.00697983]
[1741408418666,2.7912,2148.7,2148.2,0.00697983]
[1741408418864,0.93122,2148.3,2148.2,0.00697983]
[1741408419668,0.93122,2148.4,2148.2,0.00697983]
[1741408420065,0.93122,2148.3,2148.2,0.00697983]
[1741408421371,0.6577,2148.5,2148.2,0.00697983]
[1741408421567,0.6577,2148.5,2148.3,0.93122]
[1741408421568,3.71586,2148.5,2148.3,0.93122]
[1741408421765,0.93106,2148.7,2148.5,0.93113]
[1741408421965,2.128,2148.8,2148.6,0.93107]
[1741408422271,3.05903,2148.8,2148.6,4.13887]
[1741408422465,0.93105,2148.7,2148.6,3.2078]
[1741408423774,0.93121,2148.4,2148.2,3.21477983]
[1741408423973,3.2078,2148.7,2148.2,3.24477983]
[1741408423974,0.93122,2148.3,2148.2,3.24477983]
[1741408424365,0.93121,2148.4,2148.2,3.24477983]
[1741408424772,1.56696,2148.5,2148.2,3.24477983]
[1741408424974,1.56696,2148.5,2148.3,0.9312]
[1741408425365,2.128,2148.8,2148.3,0.03]
[1741408425566,0.93109,2148.7,2148.5,3.2078]
[1741408425973,0.93109,2148.7,2148.5,4.13892]
[1741408427071,2.20649,2148.9,2148.7,0.93103]
[1741408427267,2.125,2148.9,2148.8,0.93101]
[1741408427468,3.05596,2148.9,2148.7,0.93102]
[1741408427869,0.93103,2148.8,2148.6,1.57708]
[1741408428372,3.05598,2148.9,2148.7,0.93102]
[1741408428570,3.05598,2148.9,2148.7,0.93103]
[1741408429172,2.125,2148.9,2148.8,0.93101]
[1741408429574,3.05596,2148.9,2148.6,0.646]
[1741408429778,3.05596,2148.9,2148.6,0.706]
[1741408430173,2.125,2148.9,2148.8,0.93101]
[1741408431078,2.125,2148.9,2148.7,0.93104]
[1741408431278,0.93102,2148.8,2148.6,1.57707]
[1741408431475,0.93102,2148.8,2148.6,1.64707]
[1741408431676,0.93105,2148.7,2148.6,0.716]
[1741408432177,0.93105,2148.7,2148.6,0.07]
[1741408432682,2.125,2148.9,2148.7,0.93105]
[1741408432683,3.056,2148.9,2148.7,0.93105]
[1741408433075,1.55294,2149.0,2148.8,0.93101]
[1741408433272,2.115,2149.0,2148.9,0.93096]
[1741408433676,2.115,2149.0,2148.5,3.2078]
[1741408433880,0.93099,2148.9,2148.7,0.93103]
[1741408434085,3.04595,2149.0,2148.8,0.93101]
[1741408434279,2.115,2149.0,2148.5,3.2078]
[1741408434481,2.115,2149.0,2148.5,3.3878]
[1741408434687,0.931,2148.9,2148.5,3.3878]
[1741408434887,0.93101,2148.8,2148.6,0.93106]
[1741408435084,0.93101,2148.8,2148.6,1.03105]
[1741408435288,2.115,2149.0,2148.6,0.1]
[1741408435588,0.6299,2149.1,2148.6,0.1]
[1741408435790,0.93095,2149.0,2148.8,0.93099]
[1741408436587,0.93095,2149.0,2148.8,4.13879]
[1741408437186,0.6299,2149.1,2149.0,0.93092]
[1741408437386,2.22003,2149.3,2148.9,1.2304]
[1741408437691,3.4002,2149.3,2148.9,1.2704]
[1741408437985,0.622,2149.3,2148.9,1.2704]
[1741408438392,0.93086,2149.2,2149.0,0.93091]
[1741408438778,0.622,2149.3,2148.9,1.2304]
[1741408438983,0.93088,2149.1,2148.9,2.17134]
[1741408439479,0.93096,2148.9,2148.8,3.2078]
[1741408440785,2.109,2149.0,2148.8,3.2078]
[1741408441090,0.93096,2148.9,2148.8,3.2078]
[1741408441486,3.03996,2149.0,2148.8,4.13881]
[1741408441686,3.03996,2149.0,2148.8,3.2078]
[1741408441687,0.93096,2148.9,2148.8,3.2078]
[1741408446496,0.93112,2148.6,2148.5,3.2078]
[1741408446697,0.93112,2148.6,2148.5,3.2978]
[1741408447285,0.6078,2148.8,2148.5,3.2978]
[1741408447485,1.53883,2148.8,2148.6,0.93108]
[1741408447691,1.53883,2148.8,2148.6,0.94108]
[1741408448495,0.93105,2148.7,2148.6,0.01]
[1741408449199,0.6649,2149.1,2148.6,0.01]
[1741408449391,1.59581,2149.1,2148.8,3.2078]
[1741408449588,1.59581,2149.1,2148.9,0.93095]
[1741408450096,1.59581,2149.1,2148.9,1.54075]
[1741408450291,5.6908,2149.3,2149.1,0.93088]
[1741408450494,6.62159,2149.3,2149.1,0.93088]
[1741408450695,6.62159,2149.3,2149.0,0.93089]
[1741408450897,6.62159,2149.3,2149.0,0.95089]
[1741408451098,0.93086,2149.2,2149.0,0.02]
[1741408451390,0.93086,2149.2,2149.0,0.95092]
[1741408451590,6.62163,2149.3,2149.0,0.95092]
[1741408452184,5.6908,2149.3,2149.0,0.95092]
[1741408452390,0.93087,2149.2,2149.0,0.02]
[1741408452991,0.93088,2149.1,2149.0,0.02]
[1741408453195,5.6908,2149.3,2148.8,3.2078]
[1741408453490,0.9309,2149.1,2148.9,0.93096]
[1741408455297,0.9309,2149.1,2148.8,3.2078]
[1741408455298,0.648,2149.5,2148.8,3.2078]
[1741408455497,4.4896,2149.6,2149.4,0.93071]
[1741408455690,3.2078,2149.6,2149.4,0.93071]
[1741408455893,0.93065,2149.7,2149.5,0.9307]
[1741408456096,2.096,2149.8,2149.4,4.13853]
[1741408456296,0.93069,2149.6,2149.4,4.13853]
[1741408457498,0.9307,2149.5,2149.4,3.2078]
[1741408458804,0.93075,2149.4,2149.3,0.00697983]
[1741408459100,1.57025,2149.4,2149.3,0.00697983]
[1741408459303,3.66425,2149.4,2149.3,0.00697983]
[1741408459504,0.93075,2149.4,2149.3,0.00697983]
[1741408459803,2.21155,2149.4,2149.3,0.00697983]
[1741408460891,1.57205,2149.4,2149.3,0.00697983]
[1741408461101,0.93072,2149.5,2149.3,0.93776983]
[1741408461602,0.93072,2149.5,2149.3,0.93775983]
[1741408461799,0.93075,2149.4,2149.3,0.00697983]
[1741408462499,1.2808,2149.6,2149.3,0.00697983]
[1741408462803,0.93072,2149.5,2149.3,0.93775983]
[1741408463604,1.2808,2149.6,2149.3,0.00697983]
[1741408463805,0.93073,2149.5,2149.3,0.93775983]
[1741408464109,0.93075,2149.4,2149.3,0.00697983]
[1741408464894,0.93073,2149.5,2149.3,0.93776983]
[1741408465093,5.3038,2149.8,2149.4,3.2078]
[1741408465297,0.93065,2149.7,2149.5,0.9307]
[1741408465499,4.13841,2149.8,2149.6,0.93062]
[1741408465707,0.93062,2149.7,2149.5,0.93068]
[1741408466000,0.93062,2149.7,2149.5,0.9307]
[1741408466400,3.2078,2149.8,2149.4,4.4922]
[1741408466604,0.9307,2149.5,2149.4,3.2078]
[1741408466903,3.2078,2149.8,2149.4,3.2078]
[1741408467103,3.2078,2149.8,2149.5,0.9307]
[1741408467303,0.93065,2149.7,2149.5,0.9307]
[1741408468192,3.2078,2149.8,2149.4,3.2078]
[1741408468395,3.2078,2150.1,2149.7,3.2078]
[1741408468595,3.2078,2150.1,2149.9,0.93053]
[1741408468596,4.13827,2150.1,2149.9,0.93053]
[1741408468898,3.2078,2150.1,2149.9,0.9305]
[1741408469101,4.13826,2150.1,2149.9,0.9305]
[1741408469500,3.2078,2150.1,2149.7,3.2078]
[1741408469798,0.93057,2149.8,2149.7,3.2078]
[1741408470201,0.93055,2149.9,2149.7,4.25839]
[1741408470397,0.9305,2150.0,2149.7,3.2078]
[1741408470597,0.9305,2150.0,2149.8,0.93055]
[1741408472004,3.2078,2150.1,2149.8,0.93055]
[1741408472205,0.93049,2150.0,2149.8,0.93055]
[1741408473407,5.2968,2150.1,2149.7,3.2078]
[1741408474205,0.93051,2150.0,2149.8,0.93055]
[1741408474499,5.2968,2150.1,2149.7,3.2078]
[1741408474694,6.22729,2150.1,2149.8,0.93055]
[1741408475122,3.01949,2150.1,2149.7,3.2078]
[1741408475302,2.088,2150.4,2150.1,0.93041]
[1741408475498,0.93036,2150.3,2150.1,0.93041]
[1741408475700,0.93053,2150.0,2149.7,3.2078]
[1741408475897,0.6213,2149.9,2149.8,0.93057]
[1741408476095,0.6153,2150.2,2149.8,0.14]
[1741408476300,1.55166,2150.3,2150.1,0.93044]
[1741408476602,0.93044,2150.1,2150.0,3.2078]
[1741408476801,0.6213,2150.3,2150.0,3.2078]
[1741408477104,0.93044,2150.1,2150.0,3.2078]
[1741408478600,3.02744,2150.1,2150.0,3.2078]
[1741408478804,2.097,2150.1,2149.7,3.2078]
[1741408479001,0.93056,2149.9,2149.7,3.2078]
[1741408479202,0.93056,2149.9,2149.7,3.2778]
[1741408479405,0.6163,2149.9,2149.7,3.2778]
[1741408479601,1.54684,2149.9,2149.7,4.20839]
[1741408480005,0.6163,2149.9,2149.7,3.2778]
[1741408480309,1.54686,2149.9,2149.7,3.2778]
[1741408480508,0.6163,2149.9,2149.8,0.93057]
[1741408480811,1.54683,2149.9,2149.7,4.1384]
[1741408481006,1.54683,2149.9,2149.7,4.1884]
[1741408482105,3.58510794,2150.5,2149.7,5.3518]
[1741408482314,0.93038,2150.3,2150.1,0.93044]
[1741408482612,0.93038,2150.3,2150.1,0.02]
[1741408482927,0.93036,2150.3,2150.1,0.95041]
[1741408483106,2.15884,2150.4,2150.1,0.02]
[1741408483300,1.2285,2150.4,2150.1,0.02]
[1741408483500,1.2285,2150.4,2150.3,0.93036]
[1741408484407,1.2285,2150.4,2150.2,0.6107]
[1741408484811,0.93036,2150.3,2150.1,0.93043]
[1741408485407,1.2285,2150.4,2150.0,3.2078]
[1741408485605,0.93038,2150.3,2150.1,0.93043]
[1741408486509,0.9304,2150.3,2150.1,0.93044]
[1741408487115,1.2285,2150.4,2150.0,3.2078]
[1741408487116,0.93041,2150.2,2150.0,4.13826]
[1741408487508,1.2285,2150.4,2150.0,3.2078]
[1741408487706,2.089,2150.3,2149.7,3.2078]
[1741408487908,0.93055,2149.9,2149.7,3.2578]
[1741408488112,0.93057,2149.8,2149.7,3.2578]
[1741408488325,5.53381,2150.2,2149.7,3.2578]
[1741408488326,0.93055,2149.9,2149.7,3.2078]
[1741408488612,5.072,2150.3,2149.7,3.2478]
[1741408488613,0.6025,2150.1,2149.7,3.2478]
[1741408488812,0.93042,2150.2,2149.9,0.93053]
[1741408489012,0.93042,2150.2,2149.9,1.53513]
[1741408489309,0.93042,2150.2,2150.0,0.93048]
[1741408489511,0.93042,2150.2,2149.9,1.5351]
[1741408489711,0.93042,2150.2,2150.0,0.93049]
[1741408490315,0.93049,2150.0,2149.9,0.6046]
[1741408490808,5.072,2150.3,2149.9,0.6046]
[1741408491002,0.93043,2150.2,2149.9,1.53509]
[1741408491413,0.93048,2150.1,2149.9,0.6046]
[1741408491608,5.072,2150.3,2149.9,0.6046]
[1741408492214,5.072,2150.3,2149.9,1.53512]
[1741408492215,0.93046,2150.1,2149.9,1.53512]
[1741408493916,2.089,2150.3,2149.9,0.6046]
[1741408493917,0.93049,2150.0,2149.9,0.6046]
[1741408494817,0.93057,2149.8,2149.7,3.2078]
[1741408495216,0.93057,2149.8,2149.7,3.2678]
[1741408495917,1.54216,2150.1,2149.9,0.93051]
[1741408496510,0.93051,2150.0,2149.8,0.6126]
[1741408496711,1.54217,2150.1,2149.9,0.93053]
[1741408497011,1.54217,2150.1,2149.9,1.55202]
[1741408497208,0.6117,2150.1,2149.9,0.6215]
[1741408497408,1.54217,2150.1,2149.9,1.55202]
[1741408498220,0.6256,2150.2,2149.9,0.6215]
[1741408498415,0.93045,2150.1,2150.0,0.93047]
[1741408498619,0.93046,2150.1,2149.9,1.552]
[1741408499121,1.55602,2150.2,2150.0,0.93046]
[1741408499512,0.6256,2150.2,2150.0,3.2078]
[1741408499708,0.6256,2150.2,2150.1,0.93044]
[1741408499913,1.55602,2150.2,2150.0,4.13826]
[1741408500319,1.55602,2150.2,2150.0,3.2078]
[1741408501013,1.53863,2150.4,2150.2,0.93038]
[1741408501516,0.93035,2150.4,2150.2,0.93037]
[1741408501713,0.93035,2150.4,2150.0,3.2078]
[1741408501714,6.8784,2150.5,2150.3,0.93036]
[1741408501914,5.9481,2150.5,2150.0,3.2078]
[1741408502117,0.93035,2150.4,2150.0,3.3078]
[1741408502422,0.93035,2150.4,2150.2,0.93037]
[1741408503023,0.93035,2150.4,2150.0,3.2078]
[1741408503318,0.93035,2150.4,2150.0,3.3078]
[1741408503520,0.93035,2150.4,2150.2,0.93037]
[1741408503720,4.7934,2150.5,2150.3,0.93034]
[1741408504422,0.93033,2150.4,2150.0,3.2078]
[1741408504618,4.7934,2150.5,2150.3,0.93034]
[1741408504822,0.93033,2150.4,2150.0,3.2078]
[1741408505013,0.93033,2150.4,2150.3,3.2078]
[1741408505214,0.6553,2150.5,2150.3,3.2078]
[1741408505414,2.085,2150.6,2150.3,3.2078]
[1741408505624,2.085,2150.6,2150.3,4.13813]
[1741408506028,0.93029,2150.5,2150.3,4.13813]
[1741408506523,0.93031,2150.4,2150.3,3.2078]
[1741408506725,0.93025,2150.6,2150.3,3.2078]
[1741408506924,3.9748,2150.7,2150.5,0.93025]
[1741408507122,0.93024,2150.6,2150.4,1.3251]
[1741408507326,0.93024,2150.6,2150.4,1.33207983]
[1741408507526,0.93024,2150.6,2150.5,0.93027]